[Event "*** Titled Tuesday Blitz"]
[Site "Chess.com"]
[Date "2020.04.07"]
[Round "6"]
[White "Philosopherrr"]
[Black "LittlePeasant"]
[Result "1-0"]
[WhiteElo "2439"]
[BlackElo "2780"]
[TimeControl "180+1"]
[EndTime "14:10:17 PDT"]
[Termination "Philosopherrr won by resignation"]

1. e4 {[%clk 0:03:00]} 1... c5 {[%clk 0:03:00]} 2. Nf3 {[%clk 0:03:00.3]} 2...
e6 {[%clk 0:03:00.6]} 3. d4 {[%clk 0:03:00]} 3... cxd4 {[%clk 0:03:01.5]} 4.
Nxd4 {[%clk 0:03:00.9]} 4... Nc6 {[%clk 0:03:02.2]} 5. Nc3 {[%clk 0:03:01.2]}
5... Qc7 {[%clk 0:03:02.6]} 6. g3 {[%clk 0:03:01.5]} 6... a6 {[%clk 0:03:01.9]}
7. Bg2 {[%clk 0:03:01.6]} 7... d6 {[%clk 0:03:02.5]} 8. O-O {[%clk 0:03:01.1]}
8... Bd7 {[%clk 0:03:02.9]} 9. Nxc6 {[%clk 0:02:56.3]} 9... Bxc6 {[%clk
0:03:02.7]} 10. a4 {[%clk 0:02:51.7]} 10... Be7 {[%clk 0:03:02.1]} 11. Be3
{[%clk 0:02:47.4]} 11... Nf6 {[%clk 0:03:02]} 12. a5 {[%clk 0:02:47.4]} 12...
O-O {[%clk 0:03:01.9]} 13. Qd3 {[%clk 0:02:44]} 13... Nd7 {[%clk 0:03:01.6]} 14.
Rfd1 {[%clk 0:02:43.8]} 14... Rac8 {[%clk 0:03:00.3]} 15. f4 {[%clk 0:02:37.7]}
15... Qb8 {[%clk 0:02:56.8]} 16. Qe2 {[%clk 0:02:21.8]} 16... Rfe8 {[%clk
0:02:55.2]} 17. Qf2 {[%clk 0:02:21.6]} 17... Bf8 {[%clk 0:02:41.9]} 18. h3
{[%clk 0:02:17.1]} 18... Red8 {[%clk 0:02:34.7]} 19. g4 {[%clk 0:02:12.4]} 19...
g6 {[%clk 0:02:14]} 20. g5 {[%clk 0:02:05.8]} 20... Be7 {[%clk 0:01:57.6]} 21.
Rd2 {[%clk 0:01:57]} 21... Qc7 {[%clk 0:01:53.6]} 22. Ne2 {[%clk 0:01:42.9]}
22... Nc5 {[%clk 0:01:38.7]} 23. Ng3 {[%clk 0:01:37.3]} 23... Bf8 {[%clk
0:01:34.3]} 24. Bd4 {[%clk 0:01:22.5]} 24... e5 {[%clk 0:01:18.6]} 25. Bxc5
{[%clk 0:00:49.6]} 25... dxc5 {[%clk 0:01:18.4]} 26. f5 {[%clk 0:00:49.8]} 26...
c4 {[%clk 0:01:12.7]} 27. Kh2 {[%clk 0:00:40.6]} 27... Rxd2 {[%clk 0:01:08.1]}
28. Qxd2 {[%clk 0:00:40.7]} 28... Qd8 {[%clk 0:01:09]} 29. Rd1 {[%clk
0:00:30.7]} 29... Qxd2 {[%clk 0:01:07.6]} 30. Rxd2 {[%clk 0:00:31.1]} 30... Bb4
{[%clk 0:01:08.4]} 31. c3 {[%clk 0:00:31.6]} 31... Bxa5 {[%clk 0:01:08.7]} 32.
Bf1 {[%clk 0:00:32.1]} 32... Bb5 {[%clk 0:00:58.5]} 33. Rd5 {[%clk 0:00:28.8]}
33... Bc7 {[%clk 0:00:44.2]} 34. f6 {[%clk 0:00:28.9]} 34... b6 {[%clk
0:00:33.4]} 35. h4 {[%clk 0:00:27.1]} 35... Rd8 {[%clk 0:00:33.2]} 36. Rxd8+
{[%clk 0:00:20.5]} 36... Bxd8 {[%clk 0:00:33.2]} 37. Be2 {[%clk 0:00:20.9]}
37... Kf8 {[%clk 0:00:33]} 38. Nf1 {[%clk 0:00:20.3]} 38... Bc6 {[%clk 0:00:31]}
39. Bxc4 {[%clk 0:00:18.5]} 39... Bxe4 {[%clk 0:00:31.3]} 40. Bxa6 {[%clk
0:00:18.7]} 40... Bc6 {[%clk 0:00:30.6]} 41. Kg3 {[%clk 0:00:16.9]} 41... Bc7
{[%clk 0:00:31]} 42. Kf2 {[%clk 0:00:15.6]} 42... Ke8 {[%clk 0:00:30.9]} 43. Bc4
{[%clk 0:00:13.4]} 43... b5 {[%clk 0:00:29.8]} 44. Bb3 {[%clk 0:00:13.4]} 44...
Bb6+ {[%clk 0:00:30.5]} 45. Kg3 {[%clk 0:00:13]} 45... Be4 {[%clk 0:00:28.3]}
46. Nd2 {[%clk 0:00:12.7]} 46... Bd3 {[%clk 0:00:22.9]} 47. Nf3 {[%clk 0:00:13]}
47... Bc7 {[%clk 0:00:20]} 48. Kf2 {[%clk 0:00:12.7]} 48... Bb6+ {[%clk
0:00:20.3]} 49. Ke1 {[%clk 0:00:12.5]} 49... Bc7 {[%clk 0:00:18.2]} 50. Kd2
{[%clk 0:00:12.5]} 50... Be4 {[%clk 0:00:18.2]} 51. Ke3 {[%clk 0:00:12.2]} 51...
Bc6 {[%clk 0:00:18.8]} 52. Nd2 {[%clk 0:00:12]} 52... Bb6+ {[%clk 0:00:18.8]}
53. Ke2 {[%clk 0:00:12.4]} 53... Bb7 {[%clk 0:00:18.2]} 54. Bc2 {[%clk
0:00:12.6]} 54... Bc7 {[%clk 0:00:18]} 55. Bd3 {[%clk 0:00:13.1]} 55... Bc6
{[%clk 0:00:17.5]} 56. Be4 {[%clk 0:00:13.7]} 56... Bd7 {[%clk 0:00:17.6]} 57.
Bd5 {[%clk 0:00:13.8]} 57... Bd6 {[%clk 0:00:17.6]} 58. Ne4 {[%clk 0:00:14.1]}
58... Bc7 {[%clk 0:00:18.2]} 59. b4 {[%clk 0:00:14.5]} 59... Bb6 {[%clk
0:00:18.5]} 60. Kd3 {[%clk 0:00:14.8]} 60... Bf5 {[%clk 0:00:18.4]} 61. Ke2
{[%clk 0:00:14.4]} 61... Bd7 {[%clk 0:00:17.6]} 62. Nd6+ {[%clk 0:00:14.7]}
62... Kf8 {[%clk 0:00:18.1]} 63. Nxf7 {[%clk 0:00:15]} 63... Bg4+ {[%clk
0:00:18.7]} 64. Ke1 {[%clk 0:00:14.8]} 64... Bg1 {[%clk 0:00:18.2]} 65. Nxe5
{[%clk 0:00:14.7]} 65... Bf5 {[%clk 0:00:18.3]} 66. Nf3 {[%clk 0:00:13.6]} 66...
Be3 {[%clk 0:00:17.5]} 67. Ke2 {[%clk 0:00:13.7]} 67... Bf4 {[%clk 0:00:17.7]}
68. Nd4 {[%clk 0:00:13.7]} 68... Bg4+ {[%clk 0:00:17.8]} 69. Bf3 {[%clk
0:00:13.9]} 69... Bd7 {[%clk 0:00:17.5]} 70. Bd5 {[%clk 0:00:10.6]} 70... Bg3
{[%clk 0:00:17.3]} 71. Nf3 {[%clk 0:00:11]} 71... Bg4 {[%clk 0:00:16.8]} 72. Kd3
{[%clk 0:00:10.5]} 72... Bxf3 {[%clk 0:00:16.1]} 73. Bxf3 {[%clk 0:00:11.1]}
73... Bxh4 {[%clk 0:00:17]} 74. Bc6 {[%clk 0:00:11.1]} 74... Bxg5 {[%clk
0:00:17]} 75. Bxb5 {[%clk 0:00:11.7]} 75... Bxf6 {[%clk 0:00:17.5]} 76. c4
{[%clk 0:00:12.3]} 76... Ke7 {[%clk 0:00:18]} 77. c5 {[%clk 0:00:12.5]} 77...
Kd8 {[%clk 0:00:18.5]} 78. Bc6 {[%clk 0:00:12.6]} 78... Bh4 {[%clk 0:00:18]} 79.
Be4 {[%clk 0:00:12.8]} 79... Bf2 {[%clk 0:00:18]} 80. Kc4 {[%clk 0:00:13]} 80...
Kc7 {[%clk 0:00:18.5]} 81. b5 {[%clk 0:00:12.3]} 81... Be3 {[%clk 0:00:18.8]}
82. b6+ {[%clk 0:00:12.2]} 82... Kd7 {[%clk 0:00:17.8]} 83. Kd5 {[%clk
0:00:12.6]} 83... Bf2 {[%clk 0:00:17.7]} 84. Bf3 {[%clk 0:00:09.2]} 84... h5
{[%clk 0:00:17.5]} 85. Be4 {[%clk 0:00:09.6]} 85... g5 {[%clk 0:00:17.3]} 86.
Bf5+ {[%clk 0:00:10]} 86... Kd8 {[%clk 0:00:17.2]} 87. Kd6 {[%clk 0:00:07.9]}
87... g4 {[%clk 0:00:15.6]} 88. Be6 {[%clk 0:00:07.5]} 88... Be3 {[%clk
0:00:14.7]} 89. Kc6 {[%clk 0:00:07.1]} 89... g3 {[%clk 0:00:12.1]} 90. Bh3
{[%clk 0:00:07.1]} 90... h4 {[%clk 0:00:12.2]} 91. Bg2 {[%clk 0:00:07.1]} 91...
Bd4 {[%clk 0:00:12.6]} 92. Bh3 {[%clk 0:00:07]} 92... Be3 {[%clk 0:00:12.9]} 93.
Kd5 {[%clk 0:00:07.3]} 93... Bf2 {[%clk 0:00:13.8]} 94. Kc6 {[%clk 0:00:07.3]}
94... Bg1 {[%clk 0:00:13.8]} 95. Kb5 {[%clk 0:00:07.6]} 95... Bd4 {[%clk
0:00:13.9]} 96. c6 {[%clk 0:00:07.9]} 96... Be5 {[%clk 0:00:13.6]} 97. Ka6
{[%clk 0:00:08]} 97... Bf4 {[%clk 0:00:07.5]} 98. Kb7 {[%clk 0:00:07.8]} 98...
g2 {[%clk 0:00:08.4]} 99. c7+ {[%clk 0:00:08.3]} 99... Ke7 {[%clk 0:00:09.3]}
100. Bxg2 {[%clk 0:00:08.2]} 1-0

[Event "*** Titled Tuesday Blitz"]
[Site "Chess.com"]
[Date "2020.04.07"]
[Round "6"]
[White "Misticpikachu"]
[Black "bait_or_mate"]
[Result "1/2-1/2"]
[WhiteElo "2242"]
[BlackElo "2492"]
[TimeControl "180+1"]
[EndTime "14:10:18 PDT"]
[Termination "Game drawn by repetition"]

1. c4 {[%clk 0:03:00.9]} 1... e5 {[%clk 0:02:58.7]} 2. g3 {[%clk 0:03:00.4]}
2... Nc6 {[%clk 0:02:58.8]} 3. Bg2 {[%clk 0:03:00.9]} 3... g6 {[%clk 0:02:58.8]}
4. Nf3 {[%clk 0:02:59.5]} 4... Bg7 {[%clk 0:02:58.8]} 5. O-O {[%clk 0:02:59.3]}
5... e4 {[%clk 0:02:58.4]} 6. Ne1 {[%clk 0:02:55.8]} 6... Nf6 {[%clk 0:02:58.1]}
7. Nc3 {[%clk 0:02:55.7]} 7... Qe7 {[%clk 0:02:58.3]} 8. a3 {[%clk 0:02:51]}
8... O-O {[%clk 0:02:57.2]} 9. b4 {[%clk 0:02:49]} 9... Re8 {[%clk 0:02:56.6]}
10. Bb2 {[%clk 0:02:47.8]} 10... d6 {[%clk 0:02:53.3]} 11. d3 {[%clk 0:02:30.8]}
11... exd3 {[%clk 0:02:47.5]} 12. Nxd3 {[%clk 0:02:30.7]} 12... Bg4 {[%clk
0:02:45.6]} 13. Re1 {[%clk 0:02:24.2]} 13... Ne5 {[%clk 0:02:44.9]} 14. Nxe5
{[%clk 0:02:21.2]} 14... dxe5 {[%clk 0:02:45.8]} 15. Qb3 {[%clk 0:02:17]} 15...
c6 {[%clk 0:02:45.1]} 16. Rad1 {[%clk 0:02:14.5]} 16... e4 {[%clk 0:02:38.9]}
17. Na4 {[%clk 0:01:41.6]} 17... b6 {[%clk 0:02:29.2]} 18. Nc3 {[%clk
0:01:18.8]} 18... Rad8 {[%clk 0:02:27.6]} 19. Rxd8 {[%clk 0:01:18]} 19... Rxd8
{[%clk 0:02:24.7]} 20. Rd1 {[%clk 0:01:18.4]} 20... Rxd1+ {[%clk 0:02:21.9]} 21.
Qxd1 {[%clk 0:01:15.8]} 21... e3 {[%clk 0:02:19.8]} 22. f3 {[%clk 0:01:14.9]}
22... Be6 {[%clk 0:02:19]} 23. Qd4 {[%clk 0:01:07.9]} 23... Bf5 {[%clk
0:01:49.5]} 24. g4 {[%clk 0:00:47.1]} 24... Nxg4 {[%clk 0:01:35.3]} 25. Qxg7+
{[%clk 0:00:44.9]} 25... Kxg7 {[%clk 0:01:36.2]} 26. Nd5+ {[%clk 0:00:44.5]}
26... Qe5 {[%clk 0:01:36.8]} 27. Bxe5+ {[%clk 0:00:38.1]} 27... Nxe5 {[%clk
0:01:37.7]} 28. Nxe3 {[%clk 0:00:38.1]} 28... Be6 {[%clk 0:01:38.1]} 29. f4
{[%clk 0:00:34.4]} 29... Nxc4 {[%clk 0:01:38.3]} 30. Nxc4 {[%clk 0:00:34.7]}
30... Bxc4 {[%clk 0:01:39.2]} 31. Bxc6 {[%clk 0:00:35.3]} 31... Bxe2 {[%clk
0:01:39.2]} 32. Kf2 {[%clk 0:00:34.9]} 32... Bg4 {[%clk 0:01:33.7]} 33. Ke3
{[%clk 0:00:33.5]} 33... Kf8 {[%clk 0:01:32.4]} 34. Bd5 {[%clk 0:00:29.8]} 34...
Ke7 {[%clk 0:01:32.3]} 35. Kd4 {[%clk 0:00:30.4]} 35... Be6 {[%clk 0:01:31.7]}
36. Bf3 {[%clk 0:00:29.8]} 36... Kd6 {[%clk 0:01:31.5]} 37. Be4 {[%clk
0:00:26.9]} 37... h6 {[%clk 0:01:27.7]} 38. h4 {[%clk 0:00:26.4]} 38... Bg4
{[%clk 0:01:23.3]} 39. Bd3 {[%clk 0:00:22.7]} 39... Bh5 {[%clk 0:01:22.3]} 40.
Bc4 {[%clk 0:00:19.6]} 40... f6 {[%clk 0:01:21.9]} 41. Bf7 {[%clk 0:00:18.8]}
41... Ke7 {[%clk 0:01:20.3]} 42. Bd5 {[%clk 0:00:17.6]} 42... g5 {[%clk
0:01:18.5]} 43. fxg5 {[%clk 0:00:15]} 43... fxg5 {[%clk 0:01:19.4]} 44. hxg5
{[%clk 0:00:15.4]} 44... hxg5 {[%clk 0:01:20.3]} 45. Bg2 {[%clk 0:00:16]} 45...
Kd6 {[%clk 0:01:11.2]} 46. a4 {[%clk 0:00:16.2]} 46... Be8 {[%clk 0:01:10.2]}
47. a5 {[%clk 0:00:16.3]} 47... Bg6 {[%clk 0:01:05.4]} 48. Kc4 {[%clk
0:00:13.2]} 48... Bh5 {[%clk 0:00:58.9]} 49. Bf1 {[%clk 0:00:11.2]} 49... Bf3
{[%clk 0:00:58.1]} 50. Kb5 {[%clk 0:00:08.2]} 50... Kc7 {[%clk 0:00:13.9]} 51.
Ka6 {[%clk 0:00:08.2]} 51... Bc6 {[%clk 0:00:06.2]} 52. Kxa7 {[%clk 0:00:05]}
52... b5 {[%clk 0:00:06.7]} 53. Ka6 {[%clk 0:00:04.1]} 53... g4 {[%clk
0:00:06.7]} 54. Ka7 {[%clk 0:00:02.5]} 54... g3 {[%clk 0:00:07.1]} 55. a6 {[%clk
0:00:02.6]} 55... Bd5 {[%clk 0:00:02.7]} 56. Bg2 {[%clk 0:00:02.1]} 56... Bc4
{[%clk 0:00:02]} 57. Bf3 {[%clk 0:00:01.3]} 57... Be6 {[%clk 0:00:02.5]} 58. Bg2
{[%clk 0:00:01.3]} 58... Bf5 {[%clk 0:00:02.9]} 59. Bf3 {[%clk 0:00:02.2]} 59...
Bh3 {[%clk 0:00:02.9]} 60. Bg2 {[%clk 0:00:03.1]} 60... Bc8 {[%clk 0:00:03]} 61.
Bf3 {[%clk 0:00:04]} 61... Bd7 {[%clk 0:00:03.6]} 62. Bg2 {[%clk 0:00:04.5]}
62... Be6 {[%clk 0:00:03.9]} 63. Bf3 {[%clk 0:00:05.3]} 63... Bh3 {[%clk
0:00:04.1]} 64. Bg2 {[%clk 0:00:06.2]} 64... Bd7 {[%clk 0:00:04.3]} 65. Bf3
{[%clk 0:00:05.8]} 65... Be6 {[%clk 0:00:03.8]} 66. Bg2 {[%clk 0:00:06.2]} 66...
Bc4 {[%clk 0:00:04.3]} 67. Bf3 {[%clk 0:00:06.5]} 67... Bd3 {[%clk 0:00:04.6]}
68. Bg2 {[%clk 0:00:06.9]} 68... Bc2 {[%clk 0:00:05]} 69. Bf3 {[%clk 0:00:07.3]}
69... Bf5 {[%clk 0:00:05.5]} 70. Bg2 {[%clk 0:00:07.7]} 70... Bc8 {[%clk
0:00:05.3]} 71. Bf3 {[%clk 0:00:08.1]} 71... Bd7 {[%clk 0:00:05.5]} 72. Bg2
{[%clk 0:00:08.4]} 72... Be8 {[%clk 0:00:06]} 73. Bf3 {[%clk 0:00:08.9]} 73...
Bf7 {[%clk 0:00:06.5]} 74. Bg2 {[%clk 0:00:09.4]} 74... Bg8 {[%clk 0:00:06.7]}
75. Bf3 {[%clk 0:00:09.9]} 75... Bh7 {[%clk 0:00:07.3]} 76. Bg2 {[%clk
0:00:10.4]} 76... Bd3 {[%clk 0:00:07.5]} 77. Bf3 {[%clk 0:00:10.6]} 77... Bf1
{[%clk 0:00:08.1]} 78. Bg2 {[%clk 0:00:10.4]} 78... Be2 {[%clk 0:00:08.2]} 79.
Bf3 {[%clk 0:00:09.7]} 79... Bd3 {[%clk 0:00:07.9]} 80. Bg2 {[%clk 0:00:09.9]}
80... Bf5 {[%clk 0:00:07.4]} 81. Be4 {[%clk 0:00:09.5]} 81... Bc8 {[%clk
0:00:06]} 82. Bg2 {[%clk 0:00:09.5]} 82... Bd7 {[%clk 0:00:04.6]} 83. Bf3 {[%clk
0:00:09.6]} 83... Be6 {[%clk 0:00:02.8]} 1/2-1/2

[Event "*** Titled Tuesday Blitz"]
[Site "Chess.com"]
[Date "2020.04.07"]
[Round "6"]
[White "Leo_C"]
[Black "Orest_Vovk"]
[Result "0-1"]
[WhiteElo "2316"]
[BlackElo "2478"]
[TimeControl "180+1"]
[EndTime "14:10:58 PDT"]
[Termination "Orest_Vovk won by resignation"]

1. d4 {[%clk 0:03:00.9]} 1... Nc6 {[%clk 0:02:59.1]} 2. Nf3 {[%clk 0:02:57]}
2... d6 {[%clk 0:02:59]} 3. c4 {[%clk 0:02:56.1]} 3... e5 {[%clk 0:02:58.2]} 4.
Nc3 {[%clk 0:02:55.3]} 4... g6 {[%clk 0:02:56.9]} 5. Bg5 {[%clk 0:02:54.7]} 5...
Be7 {[%clk 0:02:54.5]} 6. Bxe7 {[%clk 0:02:53.6]} 6... Ngxe7 {[%clk 0:02:54]} 7.
e3 {[%clk 0:02:53.6]} 7... Bg4 {[%clk 0:02:52.5]} 8. Be2 {[%clk 0:02:53.7]} 8...
O-O {[%clk 0:02:50.7]} 9. O-O {[%clk 0:02:53.5]} 9... exd4 {[%clk 0:02:46.3]}
10. Nxd4 {[%clk 0:02:51.4]} 10... Bxe2 {[%clk 0:02:44.7]} 11. Ncxe2 {[%clk
0:02:51.5]} 11... Nxd4 {[%clk 0:02:44.1]} 12. Nxd4 {[%clk 0:02:50.4]} 12... Nc6
{[%clk 0:02:43.9]} 13. Nxc6 {[%clk 0:02:48.1]} 13... bxc6 {[%clk 0:02:43.7]} 14.
Qf3 {[%clk 0:02:48.3]} 14... c5 {[%clk 0:02:40.6]} 15. Rfd1 {[%clk 0:02:43.1]}
15... Rb8 {[%clk 0:02:40.1]} 16. b3 {[%clk 0:02:42.9]} 16... Qe7 {[%clk
0:02:37.1]} 17. Qc6 {[%clk 0:02:42.3]} 17... a5 {[%clk 0:02:35.4]} 18. Qa4
{[%clk 0:02:37.5]} 18... Ra8 {[%clk 0:02:30.7]} 19. Qc6 {[%clk 0:02:36.8]} 19...
Ra7 {[%clk 0:02:24.1]} 20. Rab1 {[%clk 0:02:35.6]} 20... Qe8 {[%clk 0:02:23.3]}
21. Qxe8 {[%clk 0:02:30.5]} 21... Rxe8 {[%clk 0:02:22.8]} 22. Kf1 {[%clk
0:02:29.6]} 22... a4 {[%clk 0:02:20.4]} 23. b4 {[%clk 0:02:28.4]} 23... cxb4
{[%clk 0:02:15.5]} 24. Rxb4 {[%clk 0:02:28.3]} 24... Re5 {[%clk 0:02:14.4]} 25.
Rd5 {[%clk 0:02:25.7]} 25... Rxd5 {[%clk 0:02:13.1]} 26. cxd5 {[%clk 0:02:26]}
26... Ra5 {[%clk 0:02:13.6]} 27. e4 {[%clk 0:02:25.5]} 27... a3 {[%clk
0:02:12.8]} 28. Rc4 {[%clk 0:02:24.8]} 28... Rb5 {[%clk 0:02:11.1]} 29. Rxc7
{[%clk 0:02:14.7]} 29... Rb1+ {[%clk 0:02:09.3]} 30. Ke2 {[%clk 0:02:13.9]}
30... Rb2+ {[%clk 0:02:09.7]} 31. Kf3 {[%clk 0:02:10.9]} 31... Rxa2 {[%clk
0:02:09.2]} 32. Rd7 {[%clk 0:02:05.2]} 32... Rb2 {[%clk 0:02:03.5]} 33. Rxd6
{[%clk 0:02:03.8]} 33... a2 {[%clk 0:02:00.4]} 34. Ra6 {[%clk 0:02:03.2]} 34...
Rb3+ {[%clk 0:02:00.3]} 35. Kf4 {[%clk 0:02:02.7]} 35... Rb2 {[%clk 0:02:00.7]}
36. Kg3 {[%clk 0:02:02.6]} 36... Rd2 {[%clk 0:01:48.9]} 37. Ra7 {[%clk
0:01:57.2]} 37... Kg7 {[%clk 0:01:45.1]} 38. d6 {[%clk 0:01:51.7]} 38... Kf6
{[%clk 0:01:39.5]} 39. d7 {[%clk 0:01:48.8]} 39... Ke7 {[%clk 0:01:31.3]} 40. f3
{[%clk 0:01:45.8]} 40... f6 {[%clk 0:01:27.3]} 41. h4 {[%clk 0:01:45]} 41... h6
{[%clk 0:01:22.8]} 42. Kh3 {[%clk 0:01:43.2]} 42... g5 {[%clk 0:01:21]} 43. hxg5
{[%clk 0:01:43.1]} 43... hxg5 {[%clk 0:01:20]} 44. g3 {[%clk 0:01:41.1]} 44...
Rxd7 {[%clk 0:01:07.4]} 45. Rxa2 {[%clk 0:01:39.6]} 45... Kf7 {[%clk 0:01:07.5]}
46. Kg4 {[%clk 0:01:38.7]} 46... Kg6 {[%clk 0:01:07.3]} 47. Ra6 {[%clk
0:01:37.5]} 47... Re7 {[%clk 0:01:05.8]} 48. Rb6 {[%clk 0:01:33.9]} 48... Re5
{[%clk 0:01:05.6]} 49. Rb4 {[%clk 0:01:28.7]} 49... Ra5 {[%clk 0:01:03.3]} 50.
f4 {[%clk 0:01:28.5]} 50... gxf4 {[%clk 0:01:02.2]} 51. gxf4 {[%clk 0:01:28.3]}
51... Ra1 {[%clk 0:01:02.6]} 52. f5+ {[%clk 0:01:27.5]} 52... Kh6 {[%clk
0:01:02.1]} 53. Rb6 {[%clk 0:01:25]} 53... Rg1+ {[%clk 0:01:01.8]} 54. Kf4
{[%clk 0:01:24.7]} 54... Rf1+ {[%clk 0:01:01.5]} 55. Ke3 {[%clk 0:01:24.8]}
55... Kg5 {[%clk 0:01:01]} 56. Re6 {[%clk 0:01:22.7]} 56... Re1+ {[%clk
0:00:55.9]} 57. Kd4 {[%clk 0:01:22.5]} 57... Rd1+ {[%clk 0:00:48.9]} 58. Kc5
{[%clk 0:01:21.4]} 58... Rd8 {[%clk 0:00:42.5]} 59. Kc6 {[%clk 0:01:19.4]} 59...
Rd4 {[%clk 0:00:39.7]} 60. e5 {[%clk 0:01:14.2]} 60... Kxf5 {[%clk 0:00:35.6]}
61. Rxf6+ {[%clk 0:01:13.5]} 61... Kxe5 {[%clk 0:00:35.4]} 62. Rf1 {[%clk
0:01:13.3]} 62... Rd2 {[%clk 0:00:34.9]} 63. Re1+ {[%clk 0:01:13.2]} 63... Kf6
{[%clk 0:00:34.5]} 64. Kc5 {[%clk 0:01:12.4]} 64... Rc2+ {[%clk 0:00:34.6]} 65.
Kd4 {[%clk 0:01:12.3]} 65... Rd2+ {[%clk 0:00:34.4]} 66. Ke3 {[%clk 0:01:12.3]}
66... Ra2 {[%clk 0:00:34.3]} 67. Re2 {[%clk 0:01:12.4]} 67... Ra3+ {[%clk
0:00:33.5]} 68. Kf2 {[%clk 0:01:12.8]} 68... Kf5 {[%clk 0:00:33.4]} 69. Re3
{[%clk 0:01:13.1]} 69... Ra2+ {[%clk 0:00:33.3]} 70. Kf3 {[%clk 0:01:13.5]}
70... Rb2 {[%clk 0:00:32.2]} 71. Rc3 {[%clk 0:01:12.6]} 71... Rb5 {[%clk
0:00:31.6]} 72. Ke3 {[%clk 0:01:12.2]} 72... Re5+ {[%clk 0:00:31.3]} 73. Kd4
{[%clk 0:01:12.1]} 73... Re4+ {[%clk 0:00:30.9]} 74. Kd5 {[%clk 0:01:12]} 74...
Rf4 {[%clk 0:00:29.9]} 75. Rc4 {[%clk 0:01:11.4]} 75... Rf1 {[%clk 0:00:29.3]}
76. Kc5 {[%clk 0:01:10.9]} 76... Ke5 {[%clk 0:00:28.4]} 77. Rc2 {[%clk
0:01:10.6]} 77... Re1 {[%clk 0:00:28]} 78. Kc4 {[%clk 0:01:08.6]} 78... Re3
{[%clk 0:00:25.1]} 79. Rc3 {[%clk 0:01:08.1]} 79... Re4+ {[%clk 0:00:24.4]} 80.
Kd3 {[%clk 0:01:07.8]} 80... Rd4+ {[%clk 0:00:21.8]} 81. Ke3 {[%clk 0:01:07.7]}
81... Rd5 {[%clk 0:00:21.4]} 82. Rd3 {[%clk 0:01:07.7]} 82... Ra5 {[%clk
0:00:20.8]} 83. Rd8 {[%clk 0:01:05.5]} 83... Ra3+ {[%clk 0:00:20.5]} 84. Rd3
{[%clk 0:01:05.2]} 84... Ra1 {[%clk 0:00:20.5]} 85. Rd8 {[%clk 0:01:04.2]} 85...
Re1+ {[%clk 0:00:19.8]} 86. Kf2 {[%clk 0:01:04.3]} 86... Rb1 {[%clk 0:00:18.5]}
87. Re8+ {[%clk 0:01:04.1]} 87... Kf4 {[%clk 0:00:18.4]} 88. Rf8+ {[%clk
0:01:03.9]} 88... Kg4 {[%clk 0:00:18.2]} 89. Rg8+ {[%clk 0:01:03.7]} 89... Kf5
{[%clk 0:00:17.9]} 90. Rf8+ {[%clk 0:01:03.8]} 90... Ke6 {[%clk 0:00:18.1]} 91.
Re8+ {[%clk 0:01:03.9]} 91... Kf7 {[%clk 0:00:18.3]} 92. Re1 {[%clk 0:01:03.5]}
92... Rb2+ {[%clk 0:00:18.1]} 93. Re2 {[%clk 0:01:03.3]} 93... Rb5 {[%clk
0:00:19]} 94. Kf3 {[%clk 0:01:02.7]} 94... Kf6 {[%clk 0:00:19.2]} 95. Re3 {[%clk
0:01:02.1]} 95... Kf5 {[%clk 0:00:18.9]} 96. Rc3 {[%clk 0:01:01.9]} 96... Ra5
{[%clk 0:00:18.3]} 97. Re3 {[%clk 0:01:01.3]} 97... Ra1 {[%clk 0:00:17.8]} 98.
Rb3 {[%clk 0:01:00.5]} 98... Rf1+ {[%clk 0:00:17.6]} 99. Ke2 {[%clk 0:01:00.2]}
99... Ra1 {[%clk 0:00:16.8]} 100. Rb5+ {[%clk 0:00:59.4]} 100... Ke4 {[%clk
0:00:16.8]} 101. Rb4+ {[%clk 0:00:59.6]} 101... Kd5 {[%clk 0:00:17]} 102. Rg4
{[%clk 0:00:58.7]} 102... Ra2+ {[%clk 0:00:16.7]} 103. Kf3 {[%clk 0:00:58.6]}
103... Ra3+ {[%clk 0:00:14.9]} 104. Kf4 {[%clk 0:00:58.3]} 104... Rh3 {[%clk
0:00:12.6]} 105. Rg3 {[%clk 0:00:57.3]} 105... Rh1 {[%clk 0:00:11.8]} 106. Rg5+
{[%clk 0:00:56.3]} 106... Kd4 {[%clk 0:00:11.5]} 107. Rg8 {[%clk 0:00:56.1]}
107... Rf1+ {[%clk 0:00:10.5]} 108. Kg3 {[%clk 0:00:47.6]} 108... Rg1+ {[%clk
0:00:10.5]} 0-1